bitfinex/quotes_SOLUSD_20220128
["timestamp","ask_amount","ask_price","bid_price","bid_amount"]
[1643389864434,0.25,91.819,91.752,6.0]
[1643389864636,0.25,91.828,91.754,6.0]
[1643389864834,0.25,91.835,91.755,0.25]
[1643389865239,0.25,91.835,91.755,37.95691493]
[1643389865439,0.25,91.835,91.763,6.0]
[1643389865639,0.25,91.835,91.765,6.0]
[1643389865839,0.25,91.843,91.766,0.25]
[1643389866041,0.25,91.843,91.774,6.0]
[1643389866241,0.25,91.843,91.775,0.25]
[1643389866440,0.25,91.843,91.775,35.51814897]
[1643389866839,113.7,91.844,91.785,6.0]
[1643389867040,10.90763256,91.874,91.785,6.0]
[1643389867240,10.90763256,91.874,91.786,0.25]
[1643389867441,10.90763256,91.874,91.786,6.25]
[1643389867641,37.85223075,91.873,91.786,6.25]
[1643389867842,16.346,91.87,91.775,35.26814897]
[1643389868042,2.97951013,91.865,91.775,35.26814897]
[1643389868241,74.082,91.86,91.775,35.26814897]
[1643389868443,113.7,91.849,91.775,35.26814897]
[1643389868847,18.15475889,91.848,91.775,35.26814897]
[1643389869046,16.351,91.84,91.776,0.25]
[1643389869249,18.03815153,91.839,91.776,0.25]
[1643389869447,0.25,91.839,91.776,0.25]
[1643389869646,124.60763256,91.849,91.785,6.0]
[1643389869647,113.7,91.849,91.785,6.0]
[1643389869846,18.15475889,91.868,91.786,0.25]
[1643389870052,18.15475889,91.868,91.787,6.0]
[1643389870251,20.06407922,91.867,91.787,6.0]
[1643389870448,53.06441779,91.867,91.777,47.1062]
[1643389870650,30.97171178,91.866,91.777,47.1062]
[1643389870852,30.97171178,91.866,91.787,6.0]
[1643389871050,17.1073878,91.865,91.787,6.0]
[1643389871251,17.1073878,91.865,91.788,0.25]
[1643389871650,17.1073878,91.865,91.791,39.46570699]
[1643389871852,0.25,91.864,91.792,0.25]
[1643389872269,16.348,91.86,91.791,39.46570699]
[1643389872477,113.7,91.857,91.73,54.491]
[1643389872674,2.97951013,91.854,91.73,13.58]
[1643389872871,13.58,91.84,91.694,22.777]
[1643389873070,6.0,91.83,91.708,157.0852]
[1643389873273,19.58,91.83,91.708,157.0852]
[1643389873577,9.90307488,91.829,91.709,39.79821751]
[1643389873774,9.90307488,91.829,91.71,109.35]
[1643389873976,16.354,91.82,91.72,16.353]
[1643389874377,16.354,91.82,91.721,132.1484]
[1643389874378,0.25,91.819,91.721,132.1484]
[1643389875082,0.25,91.819,91.74,16.35]
[1643389875280,0.25,91.828,91.741,45.3907]
[1643389875476,0.25,91.828,91.751,48.35217077]
[1643389875676,0.25,91.828,91.752,22.6268]
[1643389875877,0.25,91.828,91.752,22.8768]
[1643389876076,6.69638346,91.829,91.762,6.0]
[1643389876077,6.0,91.829,91.762,6.0]
[1643389876276,2.97951013,91.853,91.769,6.0]
[1643389876477,2.97951013,91.872,91.769,115.1]
[1643389876680,17.1073878,91.872,91.77,0.25]
[1643389876882,2.97896932,91.871,91.773,6.0]
[1643389877078,24.34365811,91.871,91.78,6.0]
[1643389877277,0.25,91.87,91.781,47.7595]
[1643389877479,3.22896932,91.87,91.784,6.0]
[1643389877678,2.97896932,91.869,91.792,43.74690834]
[1643389877879,0.25,91.868,91.793,23.6988]
[1643389878080,0.25,91.868,91.803,6.0]
[1643389878280,0.25,91.868,91.804,0.25]
[1643389878980,0.25,91.87,91.804,0.25]
[1643389879181,2.98289013,91.869,91.804,0.25]
[1643389879384,0.25,91.868,91.804,0.25]
[1643389879583,0.25,91.868,91.803,6.0]
[1643389879785,2.98596848,91.867,91.804,0.25]
[1643389879983,2.98596848,91.867,91.803,6.0]
[1643389880282,0.25,91.866,91.804,0.25]
[1643389880481,2.98596848,91.865,91.804,0.25]
[1643389880683,17.1073878,91.872,91.804,0.25]
[1643389880884,2.9851267,91.871,91.804,0.25]
[1643389881084,2.97951013,91.879,91.804,0.25]
[1643389881283,16.01888507,91.888,91.804,109.35]
[1643389881484,2.9851267,91.887,91.814,6.0]
[1643389881887,2.9851267,91.887,91.815,6.25]
[1643389882088,2.9851267,91.887,91.825,6.0]
[1643389882285,2.9851267,91.887,91.826,35.76271917]
[1643389882783,2.9851267,91.887,91.836,6.0]
[1643389883185,17.1073878,91.896,91.836,6.0]
[1643389883386,17.1073878,91.896,91.837,0.25]
[1643389883686,17.1073878,91.896,91.836,6.0]
[1643389884286,20.90628822,91.913,91.837,0.25]
[1643389884487,2.98257293,91.912,91.837,0.25]
[1643389885086,2.98257293,91.912,91.838,2.43669458]
[1643389885286,2.98257293,91.915,91.839,0.25]
[1643389885485,2.97951013,91.934,91.848,6.0]
[1643389885689,2.97951013,91.934,91.86,16.328]
[1643389885986,2.98244402,91.933,91.87,6.0]
[1643389886387,0.25,91.932,91.871,6.25]
[1643389886790,0.25,91.955,91.871,6.25]
[1643389886990,2.97433996,91.954,91.871,6.25]
[1643389887190,2.97433996,91.954,91.872,23.6592]
[1643389887387,0.25,91.953,91.873,0.25]
[1643389887593,2.97433996,91.952,91.882,6.0]
[1643389887792,0.25,91.951,91.883,0.25]
[1643389889089,17.1073878,91.96,91.883,30.455]
[1643389889090,0.25,91.959,91.883,30.455]
[1643389889491,2.97646805,91.958,91.89,6.0]
[1643389889689,2.97646805,91.958,91.884,24.5842]
[1643389889690,2.97646805,91.978,91.884,24.5842]
[1643389889892,17.1073878,91.979,91.894,6.0]
[1643389890090,6.0,91.969,91.895,22.8872]
[1643389890290,6.0,91.969,91.895,23.1372]
[1643389890492,6.0,91.969,91.905,6.0]
[1643389890893,6.0,91.966,91.906,6.25]
[1643389891291,0.25,91.965,91.906,6.25]
[1643389893693,0.25,91.968,91.896,36.25591174]
[1643389894095,17.87182769,91.968,91.896,36.25591174]
[1643389894496,6.0,91.958,91.896,36.25591174]
[1643389894996,6.25,91.957,91.896,36.25591174]
[1643389895402,6.25,91.957,91.897,0.25]
[1643389895901,6.25,91.957,91.896,36.25591174]
[1643389896103,6.25,91.957,91.897,0.25]
[1643389897906,0.25,91.957,91.897,0.25]
[1643389898405,0.25,91.968,91.897,0.25]
[1643389898618,6.25,91.968,91.906,6.0]
[1643389898818,6.25,91.968,91.907,23.8878]
[1643389899420,6.25,91.968,91.907,23.6378]
[1643389900820,6.25,91.968,91.908,0.25]
[1643389901119,6.25,91.968,91.896,36.25591174]
[1643389901120,2.95669142,91.967,91.896,36.25591174]
[1643389901321,0.25,91.966,91.896,36.25591174]
[1643389901520,6.0,91.957,91.896,36.25591174]
[1643389901920,0.25,91.956,91.896,36.25591174]
[1643389902221,1.48155453,91.953,91.84,13.58]
[1643389902421,1.48155453,91.953,91.773,1.50020546]
[1643389902422,113.7,91.933,91.822,45.8373]
[1643389902820,0.25,91.932,91.822,45.8373]
[1643389903020,0.25,91.932,91.823,109.1]
[1643389903221,0.25,91.932,91.823,155.22092651]
[1643389903222,6.90864375,91.932,91.823,155.22092651]
[1643389903623,16.335,91.93,91.833,6.0]
[1643389903821,0.25,91.929,91.834,23.182]
[1643389904024,0.25,91.929,91.844,6.0]
[1643389904221,0.25,91.929,91.845,24.4102]
[1643389904623,0.25,91.929,91.855,6.0]
[1643389904827,1.48155453,91.923,91.857,41.34431554]
[1643389905027,1.48155453,91.921,91.857,41.34431554]
[1643389905624,0.25,91.92,91.857,41.34431554]
[1643389905825,1.73155453,91.92,91.857,41.34431554]
[1643389906026,6.0,91.91,91.857,41.34431554]
[1643389906426,0.25,91.909,91.867,6.0]
[1643389907429,0.25,91.909,91.857,40.84431554]
[1643389907633,0.25,91.913,91.858,0.25]
[1643389907828,1.73155453,91.915,91.858,0.25]
[1643389908628,1.73155453,91.915,91.867,6.0]
[1643389908930,0.25,91.915,91.867,6.0]
[1643389909132,1.73155453,91.915,91.858,0.25]
[1643389909334,1.48155453,91.914,91.858,0.25]
[1643389909732,0.25,91.913,91.858,0.25]
[1643389909933,1.73155453,91.913,91.858,0.25]
[1643389910534,1.48155453,91.902,91.867,6.0]
[1643389910835,0.25,91.901,91.867,6.0]
[1643389911237,0.25,91.901,91.858,0.25]
[1643389912036,0.25,91.905,91.867,6.0]
[1643389912937,0.25,91.906,91.867,6.0]
[1643389913537,1.48155453,91.901,91.867,6.0]
[1643389913937,0.25,91.9,91.867,6.0]
[1643389915139,1.48155453,91.901,91.867,6.0]
[1643389915340,1.48155453,91.906,91.868,109.35]
[1643389915540,1.48155453,91.913,91.878,6.0]
[1643389915838,1.48155453,91.914,91.879,48.81562936]
[1643389916038,1.48155453,91.915,91.889,6.0]
[1643389916438,1.48155453,91.916,91.889,6.0]
[1643389917640,1.48155453,91.915,91.879,157.91562936]
[1643389917841,0.0029466,91.916,91.889,115.1]
[1643389918040,2.97951013,91.962,91.889,6.0]
[1643389918242,2.97951013,91.963,91.89,23.4735]
[1643389918442,2.97951013,91.96,91.89,23.4735]
[1643389918641,2.97951013,91.96,91.901,35.33984084]
[1643389918841,2.47951013,91.96,91.902,0.25]
[1643389919040,0.25,91.959,91.902,0.25]
[1643389919442,2.98737962,91.958,91.902,0.25]
[1643389919843,0.25,91.957,91.902,0.25]
[1643389920245,2.98737962,91.956,91.902,0.25]
[1643389920647,0.25,91.955,91.902,0.25]
[1643389921848,0.25,91.974,91.902,0.25]
[1643389922046,17.1073878,91.976,91.902,0.25]
[1643389922246,5.94651553,91.973,91.902,0.25]
[1643389922453,2.98982411,91.972,91.902,0.25]
[1643389922651,2.98982411,91.972,91.911,6.0]
[1643389922850,2.98982411,91.972,91.912,0.25]
[1643389923055,2.98982411,91.975,91.912,0.25]
[1643389923758,0.25,91.974,91.912,0.25]
[1643389923958,2.98982411,91.973,91.912,6.25]
[1643389924159,0.25,91.972,91.901,35.33984084]
[1643389924358,2.98982411,91.971,91.871,22.948]
[1643389924558,2.98982411,91.971,91.881,6.0]
[1643389924559,113.7,91.955,91.881,6.0]
[1643389924774,51.79883811,91.97,91.881,6.0]
[1643389924977,2.98982411,91.954,91.881,6.0]
[1643389925177,16.332,91.95,91.871,22.948]
[1643389925376,21.68232092,91.954,91.872,47.02452782]
[1643389926177,0.25,91.953,91.872,47.02452782]
[1643389926377,0.25,91.953,91.873,0.25]
[1643389926781,0.25,91.967,91.873,0.25]
[1643389926979,6.0,91.958,91.873,109.35]
[1643389927180,0.25,91.967,91.883,6.0]
[1643389927379,0.25,91.967,91.884,47.5844]
[1643389927579,19.79302612,91.967,91.894,6.0]
[1643389927781,19.79302612,91.967,91.896,40.34363606]
[1643389927980,19.79302612,91.967,91.906,6.0]
[1643389928382,19.79302612,91.967,91.896,40.34363606]
[1643389928589,19.79302612,91.967,91.884,22.7992]
[1643389928590,31.83814736,91.966,91.884,22.7992]
[1643389928887,6.0,91.957,91.884,22.7992]
[1643389929081,6.0,91.953,91.884,22.7992]
[1643389929581,6.0,91.953,91.885,43.25668414]
[1643389929582,8.4343093,91.952,91.885,43.25668414]
[1643389930081,16.332,91.95,91.885,43.25668414]
[1643389930480,2.95669142,91.949,91.885,43.25668414]
[1643389931084,16.332,91.95,91.886,0.25]
[1643389931485,16.332,91.95,91.885,43.25668414]
[1643389932285,5.22761788,91.952,91.885,43.25668414]
[1643389933288,5.22761788,91.952,91.862,6.0]
[1643389933289,16.331,91.95,91.862,6.0]
[1643389933497,16.331,91.95,90.262,0.1]
[1643389933498,0.30957126,91.937,91.831,23.66]
[1643389933707,0.30957126,91.937,91.761,4.53671427]
[1643389933894,0.30527668,91.91,91.777,47.8748]
[1643389934092,13.88527668,91.91,91.777,47.8748]
[1643389934295,16.349,91.87,91.778,46.63810721]
[1643389934594,16.349,91.87,91.72,4.53671427]
[1643389934595,6.0,91.86,91.737,24.1924]
[1643389934797,0.30086589,91.853,91.737,24.1924]
[1643389935293,13.58,91.84,91.69,13.58]
[1643389935496,22.356,91.83,91.715,40.37725625]
[1643389935693,13.58,91.82,91.715,40.37725625]
[1643389935893,6.04470315,91.819,91.715,40.37725625]
[1643389936098,6.0,91.809,91.715,40.37725625]
[1643389936292,0.25,91.808,91.715,40.37725625]
[1643389936496,18.97594085,91.799,91.715,40.37725625]
[1643389936692,18.97594085,91.799,91.725,6.0]
[1643389936895,0.25,91.798,91.725,6.0]
[1643389937293,0.25,91.798,91.715,40.37725625]
[1643389937493,0.25,91.798,91.725,6.0]
[1643389937693,6.0,91.789,91.715,40.37725625]
[1643389937895,0.25,91.788,91.716,0.25]
[1643389938098,5.79470315,91.779,91.716,0.25]
[1643389938295,0.25,91.778,91.716,0.25]
[1643389939094,0.25,91.778,91.725,6.0]
[1643389939295,0.25,91.778,91.726,0.25]
[1643389939497,6.0,91.798,91.725,6.0]
[1643389939697,6.0,91.798,91.716,0.25]
[1643389939896,16.359,91.79,91.716,0.25]
[1643389940099,5.34174726,91.779,91.716,0.25]
[1643389940495,0.25,91.778,91.715,40.37725625]
[1643389941502,6.0,91.769,91.715,40.37725625]
[1643389941700,2.95669142,91.797,91.715,40.37725625]
[1643389941701,2.95669142,91.797,91.725,6.0]
[1643389941903,2.95669142,91.807,91.726,109.35]
[1643389942203,32.26905446,91.83,91.736,6.0]
[1643389942605,2.95669142,91.819,91.736,6.0]
[1643389942808,2.95669142,91.819,91.573,101.52432456]
[1643389942809,21.10565146,91.818,91.737,43.68037658]
[1643389943005,39.79470592,91.818,91.747,6.0]
[1643389943208,6.0,91.808,91.747,6.0]
[1643389943407,0.25,91.807,91.747,6.0]
[1643389943628,21.89574588,91.807,91.747,6.0]
[1643389943832,21.64574588,91.806,91.737,43.68037658]
[1643389944029,6.0,91.796,91.7,16.356]
[1643389944230,6.0,91.796,91.71,6.0]
[1643389944430,8.95669142,91.796,91.701,6.0]
[1643389944630,16.36,91.79,91.701,6.0]
[1643389944830,0.25,91.789,91.701,6.0]
[1643389945032,3.91499254,91.789,91.702,36.78895349]
[1643389945236,3.91499254,91.789,91.702,37.03895349]
[1643389945432,3.91499254,91.789,91.712,6.0]
[1643389945633,2.95669142,91.788,91.712,6.0]
[1643389945834,16.361,91.78,91.712,6.0]
[1643389946236,0.25,91.779,91.712,6.0]
[1643389946833,0.25,91.779,91.713,0.25]
[1643389947636,0.25,91.779,91.702,36.78895349]
[1643389947835,21.64574588,91.778,91.703,0.25]
[1643389948237,21.89574588,91.777,91.703,0.25]
[1643389948639,21.10565146,91.766,91.703,0.25]
[1643389948840,0.25,91.765,91.703,0.25]
[1643389949140,0.25,91.765,91.712,6.0]
[1643389949339,0.25,91.775,91.713,109.35]
[1643389949538,0.25,91.775,91.723,6.0]
[1643389949938,0.25,91.775,91.724,0.25]
[1643389950240,0.25,91.775,91.724,46.18617576]
[1643389950438,16.36,91.79,91.724,46.18617576]
[1643389950638,16.36,91.79,91.734,6.0]
[1643389950838,13.58,91.81,91.735,0.25]
[1643389951037,379.9,92.051,91.735,109.35]
[1643389951038,18.52583224,91.817,91.735,109.35]
[1643389951441,13.58,91.87,91.745,6.0]
[1643389951643,16.349,91.85,91.75,16.347]
[1643389951839,18.04126452,91.849,91.751,38.56192027]
[1643389952041,20.99795594,91.849,91.761,6.0]
[1643389952340,2.95669142,91.848,91.761,6.0]
[1643389952540,6.0,91.838,91.761,6.0]
[1643389952942,6.0,91.838,91.751,38.31192027]
[1643389952943,6.72937948,91.829,91.751,38.31192027]
[1643389953141,6.0,91.819,91.751,38.31192027]
[1643389953540,6.25,91.818,91.751,38.31192027]
[1643389953740,3.20669142,91.818,91.751,38.31192027]
[1643389953939,2.95669142,91.817,91.751,38.31192027]
[1643389954142,17.4231998,91.809,91.751,38.31192027]
[1643389954340,17.4231998,91.809,91.736,23.2403]
[1643389954541,3.20669142,91.808,91.746,6.0]
[1643389954739,3.20669142,91.808,91.71,6.0]
[1643389954941,3.20669142,91.808,91.687,48.4958]
[1643389954942,14.49121287,91.807,91.697,6.0]
[1643389955341,29.72393249,91.806,91.698,36.12908812]
[1643389955642,7.3474442,91.769,91.698,36.12908812]
[1643389955841,0.25,91.768,91.699,0.25]
[1643389956042,0.25,91.768,91.698,36.12908812]
[1643389957243,0.25,91.768,91.699,0.25]
[1643389958845,16.365,91.76,91.698,36.12908812]
[1643389959045,6.0,91.75,91.64,13.58]
[1643389959247,6.0,91.75,91.641,23.9212]
[1643389959444,3.20669142,91.749,91.641,23.9212]
[1643389959645,9.20669142,91.749,91.641,23.9212]
[1643389959844,2.95669142,91.748,91.641,23.9212]
[1643389960044,16.373,91.72,91.642,41.28248569]
[1643389960445,0.25,91.719,91.652,6.0]
[1643389960844,2.95669142,91.748,91.659,6.0]
[1643389961045,16.508,91.772,91.659,6.0]
[1643389961344,20.61119423,91.758,91.66,47.28008975]
[1643389961544,6.0,91.75,91.67,6.0]
[1643389961946,6.0,91.75,91.671,0.25]
[1643389962146,6.0,91.748,91.671,6.25]
[1643389962346,0.25,91.747,91.671,6.0]
[1643389962545,3.20669142,91.747,91.671,6.0]
[1643389962745,2.95669142,91.746,91.671,6.0]
[1643389963245,0.25,91.745,91.671,6.0]
[1643389963645,4.15944977,91.743,91.671,6.0]
[1643389963945,6.0,91.74,91.671,6.0]
[1643389964144,3.20669142,91.742,91.671,6.0]
[1643389964345,2.95669142,91.739,91.671,6.0]
[1643389964547,2.95669142,91.739,91.661,23.4407]
[1643389964744,0.25,91.738,91.662,0.25]
[1643389964958,0.25,91.738,91.661,23.4407]
[1643389965146,2.95669142,91.737,91.59,54.57]
[1643389965348,6.0,91.729,91.599,24.5022]
[1643389965548,0.25,91.736,91.609,6.0]
[1643389965549,6.0,91.727,91.609,6.0]
[1643389965948,6.0,91.72,91.609,6.0]
[1643389966148,6.0,91.716,91.61,48.54018822]
[1643389966350,16.375,91.7,91.61,48.54018822]
[1643389966549,6.0,91.69,91.62,6.0]
[1643389966751,0.25,91.689,91.621,0.25]
[1643389967053,6.25,91.689,91.621,0.25]
[1643389967351,0.25,91.689,91.62,6.0]
[1643389967950,0.25,91.704,91.62,6.0]
[1643389968150,22.7319279,91.709,91.621,6.0]
[1643389968350,0.25,91.708,91.621,6.0]
[1643389968651,6.0,91.699,91.621,6.0]
[1643389968850,0.25,91.698,91.622,0.25]
[1643389969051,2.0387161,91.689,91.622,0.25]
[1643389969249,2.0387161,91.689,91.61,48.54018822]
[1643389969250,0.25,91.688,91.61,48.54018822]
[1643389969450,6.0,91.679,91.61,48.54018822]
[1643389969852,6.25,91.678,91.61,48.54018822]
[1643389970051,3.20669142,91.678,91.61,48.54018822]
[1643389970357,2.95669142,91.677,91.61,48.54018822]
[1643389970551,0.25,91.678,91.61,48.54018822]
[1643389970750,16.383,91.67,91.61,48.54018822]
[1643389971152,0.25,91.669,91.61,48.54018822]
[1643389972151,5.45029036,91.659,91.551,23.3455]
[1643389972354,0.25,91.658,91.58,6.0]
[1643389972550,0.25,91.658,91.571,0.25]
[1643389973053,6.0,91.649,91.571,0.25]
[1643389973253,16.387,91.64,91.563,40.9815243]
[1643389973452,18.39092917,91.639,91.563,40.9815243]
[1643389973653,18.64092917,91.639,91.563,40.7315243]
[1643389974057,6.0,91.629,91.573,6.0]
[1643389974254,16.39,91.62,91.573,6.0]
[1643389974656,0.25,91.619,91.573,6.0]
[1643389974859,0.25,91.619,91.574,0.25]
[1643389975055,0.25,91.619,91.573,6.0]
[1643389975056,0.25,91.619,91.573,5.75]
[1643389975257,0.25,91.619,91.574,0.25]
[1643389975857,0.25,91.639,91.574,0.25]
[1643389976061,20.78775407,91.639,91.574,0.25]
[1643389976660,6.0,91.64,91.574,0.25]
[1643389976860,16.385,91.65,91.574,0.25]
[1643389977285,13.58,91.66,91.574,0.25]
[1643389977487,13.58,91.66,91.573,5.75]
[1643389977686,6.0,91.65,91.573,5.75]
[1643389978085,6.25,91.649,91.573,5.75]
[1643389978685,6.0,91.64,91.563,40.7315243]
[1643389978886,7.30742765,91.639,91.563,40.7315243]
[1643389979086,16.388,91.63,91.573,6.0]
[1643389979287,0.25,91.629,91.573,6.0]
[1643389979488,0.25,91.629,91.563,40.7315243]
[1643389980491,2.95669142,91.637,91.563,40.7315243]
[1643389980688,6.0,91.62,91.511,102.0372]
[1643389980888,0.25,91.619,91.521,6.0]
[1643389981088,6.0,91.618,91.522,6.0]
[1643389981289,0.25,91.617,91.522,6.25]
[1643389981492,0.25,91.617,91.523,2.436884]
[1643389981690,0.25,91.617,91.525,41.23885962]
[1643389981895,0.25,91.617,91.533,6.0]
[1643389982092,0.25,91.617,91.535,6.0]
[1643389982290,0.25,91.617,91.536,0.25]
[1643389982594,6.0,91.609,91.536,0.25]
[1643389982791,0.25,91.608,91.536,0.25]
[1643389983695,13.58,91.63,91.536,23.3959]
[1643389984096,13.58,91.63,91.546,6.0]
[1643389984292,23.46033924,91.629,91.547,46.4169002]
[1643389984692,23.46033924,91.629,91.557,6.0]
[1643389984896,23.46033924,91.629,91.558,0.25]
[1643389985094,23.46033924,91.629,91.558,6.25]
[1643389985292,23.46033924,91.629,91.558,0.25]
[1643389985494,0.25,91.628,91.558,0.25]
[1643389985893,0.25,91.628,91.549,0.25]
[1643389986094,16.391,91.62,91.549,0.25]
[1643389986295,13.58,91.64,91.55,2.436884]
[1643389986493,20.744398,91.663,91.56,6.0]
[1643389986692,20.744398,91.663,91.561,22.5777]
[1643389986894,20.744398,91.663,91.561,22.8277]
[1643389987096,24.43294918,91.662,91.572,35.05324118]
[1643389987293,20.744398,91.663,91.573,0.25]
[1643389987494,20.744398,91.663,91.582,6.0]
[1643389987701,0.25,91.662,91.582,6.0]
[1643389987897,0.25,91.662,91.583,0.25]
[1643389988098,0.25,91.662,91.583,30.055]
[1643389988299,22.40039923,91.679,91.583,30.055]
[1643389988697,42.66524168,91.679,91.583,30.055]
[1643389989102,17.24327518,91.678,91.583,30.055]
[1643389989299,16.381,91.67,91.583,30.055]
[1643389989699,0.25,91.669,91.583,30.055]
[1643389990301,16.381,91.67,91.583,30.055]
[1643389991303,17.24327518,91.669,91.583,30.055]
[1643389992205,16.383,91.66,91.583,29.805]
[1643389992403,2.62024477,91.659,91.583,29.805]
[1643389992603,40.1283624,91.659,91.583,29.805]
[1643389992807,37.75811763,91.658,91.572,35.05324118]
[1643389993007,37.75811763,91.658,91.405,194.01426898]
[1643389993008,6.0,91.648,91.531,48.8689]
[1643389993406,16.394,91.62,91.541,6.0]
[1643389993809,3.20669142,91.619,91.541,6.0]
[1643389994006,22.15039923,91.618,91.542,42.07526007]
[1643389994208,25.10709065,91.618,91.542,42.07526007]
[1643389994410,16.392,91.61,91.552,6.0]
[1643389994817,0.25,91.609,91.552,6.0]
[1643389998115,2.62024477,91.599,91.552,6.0]
[1643389998313,0.25,91.598,91.552,6.0]
[1643390000016,0.25,91.598,91.522,6.0]
[1643390000414,0.25,91.598,91.523,3.28631154]
[1643390000617,16.396,91.59,91.533,6.0]
[1643390000816,0.25,91.589,91.534,49.85548861]
[1643390001015,0.25,91.589,91.534,55.85548861]
[1643390001215,0.25,91.589,91.512,24.669]
[1643390001416,2.95669142,91.588,91.512,24.669]
[1643390001815,6.0,91.578,91.48,109.1]
[1643390002014,16.4,91.57,91.48,109.1]
[1643390002214,17.90962774,91.569,91.505,44.82536642]
[1643390002414,18.15962774,91.569,91.505,44.82536642]
[1643390005420,6.0,91.559,91.505,44.82536642]
[1643390005820,0.25,91.558,91.505,44.82536642]
[1643390007924,16.403,91.55,91.505,44.82536642]
[1643390008127,54.668,91.58,91.506,0.25]
[1643390008328,24.4398,91.638,91.506,0.25]
[1643390008525,13.58,91.61,91.515,6.0]
[1643390008725,13.58,91.61,91.516,24.5019]
[1643390008925,2.95669142,91.609,91.517,6.0]
[1643390009125,16.394,91.6,91.527,42.24436222]
[1643390009325,16.394,91.6,91.528,0.25]
[1643390009525,16.394,91.6,91.537,6.0]
[1643390010126,16.394,91.6,91.538,6.0]
[1643390010526,16.397,91.59,91.48,18.832884]
[1643390010730,16.397,91.59,91.473,3.0265519]
[1643390010930,6.0,91.58,91.514,6.0]
[1643390011126,6.0,91.579,91.514,6.0]
[1643390011328,9.20669142,91.579,91.505,23.2782]
[1643390011527,16.4,91.57,91.506,37.68217819]
[1643390011927,0.25,91.569,91.506,37.68217819]
[1643390012127,0.25,91.569,91.516,6.0]
[1643390012427,13.58,91.59,91.517,0.25]
[1643390012627,0.25,91.577,91.517,0.25]
[1643390013628,0.25,91.577,91.516,6.0]
[1643390013629,0.25,91.588,91.516,6.0]
[1643390015028,3.20669142,91.588,91.516,6.0]
[1643390016030,16.398,91.58,91.516,6.0]
[1643390016431,0.25,91.579,91.516,6.0]
[1643390017636,16.399,91.57,91.516,6.0]
[1643390017838,4.12326962,91.569,91.517,0.25]
[1643390018038,4.12326962,91.569,91.516,6.0]
[1643390018767,4.12326962,91.569,91.506,37.68217819]
[1643390018965,4.12326962,91.569,91.507,0.25]
[1643390019164,0.25,91.568,91.507,0.25]
[1643390019569,0.25,91.568,91.505,23.2782]
[1643390019767,0.25,91.568,91.465,3.0265519]
[1643390019969,16.405,91.54,91.463,22.8048]
[1643390020168,16.405,91.54,91.452,46.9822]
[1643390020169,29.985,91.54,91.452,46.9822]
[1643390020371,6.0,91.53,91.452,46.9822]
[1643390020569,13.58,91.52,91.453,49.44337542]
[1643390020972,16.41,91.51,91.452,46.9822]
[1643390021179,35.99,91.51,91.452,46.9822]
[1643390021471,8.95669142,91.509,91.452,46.9822]
[1643390021672,6.0,91.5,91.452,46.9822]
[1643390021871,13.58,91.49,91.452,46.9822]